[Event "Titled Tuesday Blitz May 10 Late 2022"]
[White "Herrera Reyes, Jose Antonio"]
[Black "Paravyan, David"]
[WhiteFideId "2274914"]
[BlackFideId "4194985"]
[WhiteElo "2361"]
[BlackElo "2569"]
[Result "1/2-1/2"]
[Round "03"]
[TimeControl "180+1"]
[Date "2022.05.10"]
[WhiteClock "0:00:17"]
[BlackClock "0:00:13"]

1. e4 {[%clk 0:03:00]}  e5 {[%clk 0:02:59]} 2. Nf3 {[%clk 0:03:00]}  Nf6 {[%clk 0:03:00]} 3. Nxe5 {[%clk 0:02:53]}  d6 {[%clk 0:03:00]} 4. Nf3 {[%clk 0:02:53]}  Nxe4 {[%clk 0:03:00]} 5. Nc3 {[%clk 0:02:53]}  Nxc3 {[%clk 0:03:00]} 6. dxc3 {[%clk 0:02:53]}  Be7 {[%clk 0:03:00]} 7. h3 {[%clk 0:02:49]}  O-O {[%clk 0:02:58]} 8. Bd3 {[%clk 0:02:49]}  Nd7 {[%clk 0:02:59]} 9. O-O {[%clk 0:02:49]}  Nc5 {[%clk 0:02:59]} 10. Re1 {[%clk 0:02:47]}  Nxd3 {[%clk 0:02:57]} 11. cxd3 {[%clk 0:02:48]}  Re8 {[%clk 0:02:52]} 12. d4 {[%clk 0:02:46]}  Bf6 {[%clk 0:02:39]} 13. Bf4 {[%clk 0:02:42]}  Bd7 {[%clk 0:02:31]} 14. Qb3 {[%clk 0:02:40]}  b6 {[%clk 0:02:15]} 15. Rxe8+ {[%clk 0:02:37]}  Qxe8 {[%clk 0:02:14]} 16. Re1 {[%clk 0:02:37]}  Qd8 {[%clk 0:01:51]} 17. a3 {[%clk 0:02:27]}  h6 {[%clk 0:01:51]} 18. Qd5 {[%clk 0:02:21]}  Rb8 {[%clk 0:01:40]} 19. Nd2 {[%clk 0:02:16]}  Be6 {[%clk 0:01:36]} 20. Qf3 {[%clk 0:02:15]}  d5 {[%clk 0:01:01]} 21. Qg3 {[%clk 0:02:05]}  Bh4 {[%clk 0:01:01]} 22. Qh2 {[%clk 0:02:00]}  Rc8 {[%clk 0:01:00]} 23. Nf3 {[%clk 0:01:59]}  Bf6 {[%clk 0:01:00]} 24. Qg3 {[%clk 0:01:59]}  Kh7 {[%clk 0:00:52]} 25. Ne5 {[%clk 0:01:36]}  c5 {[%clk 0:00:43]} 26. Be3 {[%clk 0:01:36]}  Qc7 {[%clk 0:00:31]} 27. f4 {[%clk 0:01:33]}  Bf5 {[%clk 0:00:29]} 28. Bf2 {[%clk 0:01:28]}  g6 {[%clk 0:00:19]} 29. Qe3 {[%clk 0:01:25]}  Bg7 {[%clk 0:00:17]} 30. g4 {[%clk 0:01:24]}  Be4 {[%clk 0:00:17]} 31. Qg3 {[%clk 0:01:22]}  Re8 {[%clk 0:00:17]} 32. Kh2 {[%clk 0:01:21]}  Re7 {[%clk 0:00:17]} 33. f5 {[%clk 0:01:19]}  Bxe5 {[%clk 0:00:16]} 34. dxe5 {[%clk 0:01:18]}  Qxe5 {[%clk 0:00:16]} 35. fxg6+ {[%clk 0:01:15]}  fxg6 {[%clk 0:00:15]} 36. Qxe5 {[%clk 0:00:36]}  Rxe5 {[%clk 0:00:16]} 37. b4 {[%clk 0:00:34]}  cxb4 {[%clk 0:00:09]} 38. axb4 {[%clk 0:00:34]}  Re7 {[%clk 0:00:09]} 39. Bd4 {[%clk 0:00:34]}  Rf7 {[%clk 0:00:07]} 40. Ra1 {[%clk 0:00:29]}  Kg8 {[%clk 0:00:07]} 41. Kg3 {[%clk 0:00:28]}  Kf8 {[%clk 0:00:07]} 42. h4 {[%clk 0:00:25]}  Ke8 {[%clk 0:00:06]} 43. h5 {[%clk 0:00:25]}  gxh5 {[%clk 0:00:06]} 44. gxh5 {[%clk 0:00:25]}  Rf5 {[%clk 0:00:06]} 45. Rxa7 {[%clk 0:00:23]}  Rxh5 {[%clk 0:00:06]} 46. Bxb6 {[%clk 0:00:23]}  Rf5 {[%clk 0:00:05]} 47. Bd4 {[%clk 0:00:23]}  Bd3 {[%clk 0:00:05]} 48. Kh4 {[%clk 0:00:20]}  Kd8 {[%clk 0:00:04]} 49. Kg4 {[%clk 0:00:19]}  h5+ {[%clk 0:00:04]} 50. Kh4 {[%clk 0:00:19]}  Kc8 {[%clk 0:00:05]} 51. Rg7 {[%clk 0:00:17]}  Be2 {[%clk 0:00:05]} 52. Kg3 {[%clk 0:00:16]}  Rf3+ {[%clk 0:00:04]} 53. Kg2 {[%clk 0:00:16]}  Rf5 {[%clk 0:00:05]} 54. Re7 {[%clk 0:00:16]}  Bc4 {[%clk 0:00:05]} 55. Kg3 {[%clk 0:00:16]}  Kd8 {[%clk 0:00:05]} 56. Rg7 {[%clk 0:00:16]}  Kc8 {[%clk 0:00:06]} 57. Kh4 {[%clk 0:00:14]}  Be2 {[%clk 0:00:06]} 58. Re7 {[%clk 0:00:14]}  Bc4 {[%clk 0:00:06]} 59. Rh7 {[%clk 0:00:11]}  Kb8 {[%clk 0:00:05]} 60. Rxh5 {[%clk 0:00:11]}  Rxh5+ {[%clk 0:00:05]} 61. Kxh5 {[%clk 0:00:11]}  Kb7 {[%clk 0:00:06]} 62. Kg5 {[%clk 0:00:12]}  Kc6 {[%clk 0:00:07]} 63. Kf6 {[%clk 0:00:13]}  Kb5 {[%clk 0:00:08]} 64. Ke5 {[%clk 0:00:13]}  Bb3 {[%clk 0:00:09]} 65. Kd6 {[%clk 0:00:14]}  Bc4 {[%clk 0:00:10]} 66. Kc7 {[%clk 0:00:14]}  Bb3 {[%clk 0:00:11]} 67. Kd6 {[%clk 0:00:15]}  Bc4 {[%clk 0:00:12]} 68. Kc7 {[%clk 0:00:16]}  Bb3 {[%clk 0:00:13]} 69. Kd6 {[%clk 0:00:17]} 1/2-1/2


[Site "https://www.chess.com"]

[Event "Titled Tuesday Blitz May 10 Late 2022"]
[White "Hnydiuk, Aleksander"]
[Black "Mekhane, Adam"]
[WhiteFideId "1109057"]
[BlackFideId "36050601"]
[WhiteElo "2374"]
[BlackElo "2002"]
[Result "1-0"]
[Round "03"]
[TimeControl "180+1"]
[Date "2022.05.11"]
[WhiteClock "0:00:22"]
[BlackClock "0:00:01"]

1. e4 {[%clk 0:03:00]}  c5 {[%clk 0:03:00]} 2. Nf3 {[%clk 0:03:00]}  Nc6 {[%clk 0:02:59]} 3. d4 {[%clk 0:02:59]}  cxd4 {[%clk 0:02:59]} 4. Nxd4 {[%clk 0:03:00]}  Nf6 {[%clk 0:02:59]} 5. Nc3 {[%clk 0:03:00]}  d6 {[%clk 0:02:51]} 6. f3 {[%clk 0:02:58]}  g6 {[%clk 0:02:49]} 7. Be3 {[%clk 0:02:58]}  Bg7 {[%clk 0:02:50]} 8. Qd2 {[%clk 0:02:58]}  O-O {[%clk 0:02:50]} 9. O-O-O {[%clk 0:02:58]}  d5 {[%clk 0:02:49]} 10. exd5 {[%clk 0:02:54]}  Nxd5 {[%clk 0:02:49]} 11. Nxc6 {[%clk 0:02:55]}  bxc6 {[%clk 0:02:49]} 12. Bd4 {[%clk 0:02:55]}  e5 {[%clk 0:02:49]} 13. Bc5 {[%clk 0:02:54]}  Be6 {[%clk 0:02:48]} 14. Ne4 {[%clk 0:02:37]}  Re8 {[%clk 0:02:47]} 15. h4 {[%clk 0:02:35]}  h6 {[%clk 0:02:46]} 16. h5 {[%clk 0:02:35]}  g5 {[%clk 0:02:45]} 17. Bc4 {[%clk 0:02:35]}  Qc7 {[%clk 0:02:30]} 18. Kb1 {[%clk 0:02:02]}  Red8 {[%clk 0:02:25]} 19. Bb3 {[%clk 0:01:54]}  a5 {[%clk 0:02:19]} 20. a4 {[%clk 0:01:53]}  Rab8 {[%clk 0:02:17]} 21. g3 {[%clk 0:01:44]}  f5 {[%clk 0:02:03]} 22. Nxg5 {[%clk 0:01:32]}  hxg5 {[%clk 0:01:57]} 23. Qxg5 {[%clk 0:01:33]}  Kh8 {[%clk 0:01:20]} 24. Bxd5 {[%clk 0:01:20]}  cxd5 {[%clk 0:01:12]} 25. h6 {[%clk 0:01:18]}  Bf8 {[%clk 0:01:04]} 26. Qf6+ {[%clk 0:01:13]}  Kh7 {[%clk 0:01:04]} 27. Bxf8 {[%clk 0:01:12]}  Rxf8 {[%clk 0:00:45]} 28. Qxe6 {[%clk 0:01:11]}  d4 {[%clk 0:00:46]} 29. f4 {[%clk 0:01:03]}  Rb7 {[%clk 0:00:32]} 30. fxe5 {[%clk 0:00:58]}  Rb6 {[%clk 0:00:18]} 31. Qa2 {[%clk 0:00:51]}  Rfb8 {[%clk 0:00:17]} 32. b3 {[%clk 0:00:51]}  Qxe5 {[%clk 0:00:15]} 33. Qb2 {[%clk 0:00:50]}  Rb4 {[%clk 0:00:13]} 34. Rh4 {[%clk 0:00:48]}  Rxa4 {[%clk 0:00:12]} 35. Rhxd4 {[%clk 0:00:48]}  Rxd4 {[%clk 0:00:12]} 36. Rxd4 {[%clk 0:00:45]}  Qe1+ {[%clk 0:00:10]} 37. Ka2 {[%clk 0:00:46]}  Rb7 {[%clk 0:00:08]} 38. Rd8 {[%clk 0:00:43]}  Kxh6 {[%clk 0:00:05]} 39. Qf6+ {[%clk 0:00:42]}  Kh5 {[%clk 0:00:04]} 40. Qxf5+ {[%clk 0:00:40]}  Kh6 {[%clk 0:00:03]} 41. Qf6+ {[%clk 0:00:25]}  Kh5 {[%clk 0:00:02]} 42. g4+ {[%clk 0:00:25]}  Kxg4 {[%clk 0:00:02]} 43. Rg8+ {[%clk 0:00:25]}  Kh3 {[%clk 0:00:02]} 44. Qf3+ {[%clk 0:00:22]}  Kh2 {[%clk 0:00:01]} 45. Qg2# {[%clk 0:00:22]} 1-0


[Site "https://www.chess.com"]

[Event "Titled Tuesday Blitz May 10 Late 2022"]
[White "Hoffmann, Asa"]
[Black "Lohani, Sujana"]
[WhiteFideId "2001470"]
[BlackFideId "12311987"]
[WhiteElo "2117"]
[BlackElo "1691"]
[Result "1-0"]
[Round "03"]
[TimeControl "180+1"]
[Date "2022.05.11"]
[WhiteClock "0:01:06"]
[BlackClock "0:00:07"]

1. d4 {[%clk 0:02:56]}  Nf6 {[%clk 0:02:58]} 2. Bg5 {[%clk 0:02:53]}  d5 {[%clk 0:02:50]} 3. Nd2 {[%clk 0:02:51]}  Nbd7 {[%clk 0:02:49]} 4. e3 {[%clk 0:02:50]}  h6 {[%clk 0:02:49]} 5. Bh4 {[%clk 0:02:50]}  g5 {[%clk 0:02:49]} 6. Bg3 {[%clk 0:02:50]}  h5 {[%clk 0:02:49]} 7. h4 {[%clk 0:02:49]}  g4 {[%clk 0:02:49]} 8. Bd3 {[%clk 0:02:49]}  Bh6 {[%clk 0:02:46]} 9. Ne2 {[%clk 0:02:49]}  O-O {[%clk 0:02:31]} 10. c3 {[%clk 0:02:43]}  c6 {[%clk 0:02:29]} 11. Qc2 {[%clk 0:02:43]}  Re8 {[%clk 0:02:27]} 12. c4 {[%clk 0:02:26]}  e5 {[%clk 0:02:21]} 13. cxd5 {[%clk 0:02:25]}  Nxd5 {[%clk 0:02:12]} 14. a3 {[%clk 0:02:11]}  N7f6 {[%clk 0:02:09]} 15. dxe5 {[%clk 0:01:54]}  Bxe3 {[%clk 0:01:48]} 16. exf6 {[%clk 0:01:51]}  Qxf6 {[%clk 0:01:23]} 17. O-O {[%clk 0:01:46]}  Bh6 {[%clk 0:01:11]} 18. Ne4 {[%clk 0:01:42]}  Qe7 {[%clk 0:01:01]} 19. N2c3 {[%clk 0:01:35]}  Nxc3 {[%clk 0:00:57]} 20. Qxc3 {[%clk 0:01:34]}  Bf5 {[%clk 0:00:53]} 21. Nf6+ {[%clk 0:01:32]}  Kf8 {[%clk 0:00:26]} 22. Bxf5 {[%clk 0:01:28]}  Red8 {[%clk 0:00:22]} 23. Nxh5 {[%clk 0:01:23]}  f6 {[%clk 0:00:19]} 24. Rae1 {[%clk 0:01:17]}  Qf7 {[%clk 0:00:09]} 25. Nxf6 {[%clk 0:01:13]}  Bg7 {[%clk 0:00:08]} 26. Nh7+ {[%clk 0:01:11]}  Kg8 {[%clk 0:00:07]} 27. Qc2 {[%clk 0:01:06]} 1-0


[Site "https://www.chess.com"]

[Event "Titled Tuesday Blitz May 10 Late 2022"]
[White "Jacobson, Brandon"]
[Black "Riehle, Marco"]
[WhiteFideId "30901561"]
[BlackFideId "12904392"]
[WhiteElo "2362"]
[BlackElo "2462"]
[Result "0-1"]
[Round "03"]
[TimeControl "180+1"]
[Date "2022.05.10"]
[WhiteClock "0:01:18"]
[BlackClock "0:01:26"]

1. Nf3 {[%clk 0:03:00]}  d5 {[%clk 0:02:56]} 2. e3 {[%clk 0:03:00]}  c5 {[%clk 0:02:56]} 3. c4 {[%clk 0:03:01]}  Nf6 {[%clk 0:02:55]} 4. cxd5 {[%clk 0:03:01]}  Nxd5 {[%clk 0:02:56]} 5. Nc3 {[%clk 0:03:02]}  Nc6 {[%clk 0:02:56]} 6. Bb5 {[%clk 0:03:02]}  e6 {[%clk 0:02:56]} 7. Ne5 {[%clk 0:03:01]}  Qc7 {[%clk 0:02:55]} 8. Qa4 {[%clk 0:02:55]}  Bd7 {[%clk 0:02:45]} 9. Nxd7 {[%clk 0:02:53]}  Qxd7 {[%clk 0:02:46]} 10. Bxc6 {[%clk 0:02:53]}  bxc6 {[%clk 0:02:46]} 11. O-O {[%clk 0:02:51]}  Be7 {[%clk 0:02:44]} 12. b3 {[%clk 0:02:51]}  Nxc3 {[%clk 0:02:38]} 13. dxc3 {[%clk 0:02:51]}  O-O {[%clk 0:02:39]} 14. Ba3 {[%clk 0:02:51]}  Rfd8 {[%clk 0:02:30]} 15. Qa5 {[%clk 0:02:39]}  Qd5 {[%clk 0:02:20]} 16. c4 {[%clk 0:02:38]}  Qd2 {[%clk 0:02:13]} 17. Qc7 {[%clk 0:02:05]}  Bf6 {[%clk 0:02:01]} 18. Rab1 {[%clk 0:02:05]}  Qxa2 {[%clk 0:01:53]} 19. Bxc5 {[%clk 0:02:04]}  Rd2 {[%clk 0:01:47]} 20. e4 {[%clk 0:01:40]}  Rad8 {[%clk 0:01:34]} 21. Be3 {[%clk 0:01:25]}  R2d3 {[%clk 0:01:27]} 22. Qxa7 {[%clk 0:01:18]}  Qxb1 {[%clk 0:01:26]} 0-1


[Site "https://www.chess.com"]

[Event "Titled Tuesday Blitz May 10 Late 2022"]
[White "Jarovinsky, Alexey"]
[Black "RestartingChess"]
[WhiteFideId "14115131"]
[WhiteElo "2446"]
[BlackElo "2476"]
[Result "1-0"]
[Round "03"]
[TimeControl "180+1"]
[Date "2022.05.11"]
[WhiteClock "0:00:08"]
[BlackClock "0:00:15"]

1. Nc3 {[%clk 0:03:00]}  Nf6 {[%clk 0:02:58]} 2. e4 {[%clk 0:03:00]}  e5 {[%clk 0:02:58]} 3. f4 {[%clk 0:02:58]}  d6 {[%clk 0:02:56]} 4. Nf3 {[%clk 0:02:57]}  Nc6 {[%clk 0:02:56]} 5. Bb5 {[%clk 0:02:57]}  exf4 {[%clk 0:02:55]} 6. O-O {[%clk 0:02:55]}  a6 {[%clk 0:02:54]} 7. Bxc6+ {[%clk 0:02:55]}  bxc6 {[%clk 0:02:55]} 8. d3 {[%clk 0:02:51]}  Be7 {[%clk 0:02:55]} 9. Bxf4 {[%clk 0:02:51]}  O-O {[%clk 0:02:56]} 10. h3 {[%clk 0:02:51]}  h6 {[%clk 0:02:55]} 11. Qd2 {[%clk 0:02:50]}  Kh7 {[%clk 0:02:55]} 12. Ne2 {[%clk 0:02:47]}  Nh5 {[%clk 0:02:55]} 13. Be3 {[%clk 0:02:44]}  f5 {[%clk 0:02:50]} 14. exf5 {[%clk 0:02:44]}  Bxf5 {[%clk 0:02:46]} 15. g4 {[%clk 0:02:43]}  Bxg4 {[%clk 0:02:46]} 16. hxg4 {[%clk 0:02:44]}  Nf6 {[%clk 0:02:46]} 17. g5 {[%clk 0:02:33]}  Ng4 {[%clk 0:02:46]} 18. Ng3 {[%clk 0:02:24]}  d5 {[%clk 0:02:27]} 19. gxh6 {[%clk 0:02:13]}  gxh6 {[%clk 0:02:27]} 20. Nh2 {[%clk 0:02:12]}  Nxe3 {[%clk 0:02:11]} 21. Qxe3 {[%clk 0:02:13]}  Bg5 {[%clk 0:02:08]} 22. Qe6 {[%clk 0:02:10]}  Bf4 {[%clk 0:01:52]} 23. Rf3 {[%clk 0:02:09]}  Qg5 {[%clk 0:01:50]} 24. Qg4 {[%clk 0:01:59]}  Be3+ {[%clk 0:01:45]} 25. Kg2 {[%clk 0:01:58]}  Rxf3 {[%clk 0:01:31]} 26. Qxf3 {[%clk 0:01:45]}  Rg8 {[%clk 0:01:27]} 27. Rf1 {[%clk 0:01:43]}  h5 {[%clk 0:01:26]} 28. Kh3 {[%clk 0:01:37]}  h4 {[%clk 0:01:20]} 29. Qf7+ {[%clk 0:01:16]}  Rg7 {[%clk 0:01:18]} 30. Qh5+ {[%clk 0:01:10]}  Kg8 {[%clk 0:01:04]} 31. Qxg5 {[%clk 0:01:09]}  Rxg5 {[%clk 0:01:01]} 32. Nf5 {[%clk 0:01:08]}  Bc5 {[%clk 0:00:54]} 33. Ng4 {[%clk 0:01:03]}  Rg6 {[%clk 0:00:46]} 34. d4 {[%clk 0:00:58]}  Bf8 {[%clk 0:00:43]} 35. Nxh4 {[%clk 0:00:55]}  Re6 {[%clk 0:00:43]} 36. Ne5 {[%clk 0:00:48]}  c5 {[%clk 0:00:40]} 37. Rg1+ {[%clk 0:00:32]}  Kh7 {[%clk 0:00:37]} 38. Nhg6 {[%clk 0:00:19]}  Bg7 {[%clk 0:00:37]} 39. c3 {[%clk 0:00:17]}  cxd4 {[%clk 0:00:38]} 40. cxd4 {[%clk 0:00:17]}  c5 {[%clk 0:00:38]} 41. Rg5 {[%clk 0:00:11]}  cxd4 {[%clk 0:00:35]} 42. Rh5+ {[%clk 0:00:09]}  Kg8 {[%clk 0:00:35]} 43. Kg4 {[%clk 0:00:08]}  d3 {[%clk 0:00:34]} 44. Nxd3 {[%clk 0:00:08]}  Rxg6+ {[%clk 0:00:33]} 45. Kf5 {[%clk 0:00:07]}  Rg2 {[%clk 0:00:33]} 46. Rg5 {[%clk 0:00:06]}  Rd2 {[%clk 0:00:29]} 47. Nf4 {[%clk 0:00:05]}  Kf7 {[%clk 0:00:27]} 48. Rg2 {[%clk 0:00:03]}  Rd1 {[%clk 0:00:19]} 49. Kg4 {[%clk 0:00:01]}  d4 {[%clk 0:00:17]} 50. Rf2 {[%clk 0:00:01]}  Ke7 {[%clk 0:00:14]} 51. Kf3 {[%clk 0:00:02]}  Kd6 {[%clk 0:00:13]} 52. Ke2 {[%clk 0:00:02]}  Rb1 {[%clk 0:00:12]} 53. Nd3 {[%clk 0:00:02]}  Ra1 {[%clk 0:00:10]} 54. Kd2 {[%clk 0:00:02]}  Rxa2 {[%clk 0:00:10]} 55. Kc2 {[%clk 0:00:03]}  Ra5 {[%clk 0:00:10]} 56. Rg2 {[%clk 0:00:04]}  Bf6 {[%clk 0:00:09]} 57. Rg6 {[%clk 0:00:04]}  Ke7 {[%clk 0:00:10]} 58. Rh6 {[%clk 0:00:04]}  Rf5 {[%clk 0:00:10]} 59. Rh7+ {[%clk 0:00:04]}  Ke6 {[%clk 0:00:11]} 60. Ra7 {[%clk 0:00:04]}  a5 {[%clk 0:00:10]} 61. Ra6+ {[%clk 0:00:04]}  Kf7 {[%clk 0:00:11]} 62. Kb3 {[%clk 0:00:04]}  Rb5+ {[%clk 0:00:11]} 63. Kc4 {[%clk 0:00:05]}  Rh5 {[%clk 0:00:10]} 64. Rc6 {[%clk 0:00:04]}  Rh1 {[%clk 0:00:10]} 65. Rc7+ {[%clk 0:00:04]}  Kg6 {[%clk 0:00:10]} 66. Rc5 {[%clk 0:00:04]}  a4 {[%clk 0:00:10]} 67. Ra5 {[%clk 0:00:04]}  Rh2 {[%clk 0:00:10]} 68. Rxa4 {[%clk 0:00:03]}  Rc2+ {[%clk 0:00:11]} 69. Kb3 {[%clk 0:00:03]}  Rc8 {[%clk 0:00:11]} 70. Rb4 {[%clk 0:00:02]}  Kf5 {[%clk 0:00:12]} 71. Rb5+ {[%clk 0:00:02]}  Ke4 {[%clk 0:00:12]} 72. Nc5+ {[%clk 0:00:02]}  Ke3 {[%clk 0:00:12]} 73. Kc4 {[%clk 0:00:03]}  d3 {[%clk 0:00:12]} 74. Rb3 {[%clk 0:00:03]}  Be7 {[%clk 0:00:07]} 75. Rxd3+ {[%clk 0:00:04]}  Kf4 {[%clk 0:00:06]} 76. Rd5 {[%clk 0:00:04]}  Rb8 {[%clk 0:00:05]} 77. b4 {[%clk 0:00:04]}  Bf6 {[%clk 0:00:03]} 78. Rd3 {[%clk 0:00:04]}  Be5 {[%clk 0:00:03]} 79. Rd1 {[%clk 0:00:04]}  Bb2 {[%clk 0:00:02]} 80. Rf1+ {[%clk 0:00:05]}  Ke3 {[%clk 0:00:03]} 81. Rh1 {[%clk 0:00:04]}  Ba3 {[%clk 0:00:03]} 82. Rh3+ {[%clk 0:00:05]}  Kf4 {[%clk 0:00:03]} 83. Rxa3 {[%clk 0:00:05]}  Ke5 {[%clk 0:00:04]} 84. Rd3 {[%clk 0:00:06]}  Rc8 {[%clk 0:00:04]} 85. Re3+ {[%clk 0:00:06]}  Kf4 {[%clk 0:00:05]} 86. Rc3 {[%clk 0:00:06]}  Kf5 {[%clk 0:00:06]} 87. Rc2 {[%clk 0:00:06]}  Rb8 {[%clk 0:00:06]} 88. Rc1 {[%clk 0:00:07]}  Rg8 {[%clk 0:00:06]} 89. Rf1+ {[%clk 0:00:07]}  Ke5 {[%clk 0:00:07]} 90. Re1+ {[%clk 0:00:07]}  Kf4 {[%clk 0:00:08]} 91. Re4+ {[%clk 0:00:07]}  Kf5 {[%clk 0:00:08]} 92. b5 {[%clk 0:00:07]}  Rg1 {[%clk 0:00:09]} 93. Rd4 {[%clk 0:00:08]}  Rc1+ {[%clk 0:00:10]} 94. Kd5 {[%clk 0:00:08]}  Rb1 {[%clk 0:00:11]} 95. Kc6 {[%clk 0:00:08]}  Kf6 {[%clk 0:00:11]} 96. Rd5 {[%clk 0:00:09]}  Ke7 {[%clk 0:00:12]} 97. Rd7+ {[%clk 0:00:09]}  Ke8 {[%clk 0:00:12]} 98. Rd6 {[%clk 0:00:09]}  Ke7 {[%clk 0:00:13]} 99. Re6+ {[%clk 0:00:09]}  Kd8 {[%clk 0:00:13]} 100. Re4 {[%clk 0:00:10]}  Rc1 {[%clk 0:00:13]} 101. b6 {[%clk 0:00:10]}  Rb1 {[%clk 0:00:14]} 102. Rd4+ {[%clk 0:00:10]}  Kc8 {[%clk 0:00:14]} 103. Rg4 {[%clk 0:00:10]}  Kd8 {[%clk 0:00:14]} 104. Rg7 {[%clk 0:00:10]}  Rb2 {[%clk 0:00:14]} 105. b7 {[%clk 0:00:10]}  Rb1 {[%clk 0:00:13]} 106. Rg8+ {[%clk 0:00:10]}  Ke7 {[%clk 0:00:13]} 107. b8=Q {[%clk 0:00:11]}  Rd1 {[%clk 0:00:13]} 108. Re8+ {[%clk 0:00:10]}  Kf6 {[%clk 0:00:13]} 109. Rf8+ {[%clk 0:00:10]}  Kg5 {[%clk 0:00:12]} 110. Rg8+ {[%clk 0:00:10]}  Kf6 {[%clk 0:00:12]} 111. Qf8+ {[%clk 0:00:10]}  Ke5 {[%clk 0:00:13]} 112. Rg5+ {[%clk 0:00:10]}  Kd4 {[%clk 0:00:12]} 113. Qf4+ {[%clk 0:00:10]}  Kc3 {[%clk 0:00:12]} 114. Rg3+ {[%clk 0:00:10]}  Kb2 {[%clk 0:00:13]} 115. Qb4+ {[%clk 0:00:09]}  Kc1 {[%clk 0:00:13]} 116. Qc3+ {[%clk 0:00:08]}  Kb1 {[%clk 0:00:13]} 117. Qb3+ {[%clk 0:00:08]}  Kc1 {[%clk 0:00:13]} 118. Rc3+ {[%clk 0:00:08]}  Kd2 {[%clk 0:00:13]} 119. Qc2+ {[%clk 0:00:07]}  Ke1 {[%clk 0:00:14]} 120. Re3+ {[%clk 0:00:08]}  Kf1 {[%clk 0:00:14]} 121. Qe2+ {[%clk 0:00:08]}  Kg1 {[%clk 0:00:14]} 122. Rg3+ {[%clk 0:00:08]}  Kh1 {[%clk 0:00:15]} 123. Qg2# {[%clk 0:00:08]} 1-0


[Site "https://www.chess.com"]

[Event "Titled Tuesday Blitz May 10 Late 2022"]
[White "Jegorovas, Aleksandras"]
[Black "Postny, Evgeny"]
[WhiteFideId "12801950"]
[BlackFideId "2804344"]
[WhiteElo "2516"]
[BlackElo "2767"]
[Result "1-0"]
[Round "03"]
[TimeControl "180+1"]
[Date "2022.05.11"]
[WhiteClock "0:00:02"]
[BlackClock "0:00:02"]

1. Nf3 {[%clk 0:02:56]}  d5 {[%clk 0:02:59]} 2. d4 {[%clk 0:02:56]}  Nf6 {[%clk 0:02:57]} 3. c4 {[%clk 0:02:54]}  c6 {[%clk 0:02:57]} 4. e3 {[%clk 0:02:53]}  Bg4 {[%clk 0:02:56]} 5. Nc3 {[%clk 0:02:52]}  e6 {[%clk 0:02:55]} 6. h3 {[%clk 0:02:50]}  Bh5 {[%clk 0:02:55]} 7. g4 {[%clk 0:02:46]}  Bg6 {[%clk 0:02:54]} 8. Ne5 {[%clk 0:02:46]}  Nfd7 {[%clk 0:02:53]} 9. Nxg6 {[%clk 0:02:40]}  hxg6 {[%clk 0:02:53]} 10. a3 {[%clk 0:02:33]}  Bd6 {[%clk 0:02:51]} 11. Bd2 {[%clk 0:02:31]}  Qe7 {[%clk 0:02:49]} 12. Qb3 {[%clk 0:02:17]}  b6 {[%clk 0:02:46]} 13. cxd5 {[%clk 0:02:00]}  exd5 {[%clk 0:02:46]} 14. Bg2 {[%clk 0:01:44]}  a5 {[%clk 0:02:25]} 15. Rc1 {[%clk 0:00:48]}  O-O {[%clk 0:02:19]} 16. O-O {[%clk 0:00:47]}  Ra7 {[%clk 0:02:13]} 17. e4 {[%clk 0:00:44]}  dxe4 {[%clk 0:02:13]} 18. Nxe4 {[%clk 0:00:42]}  a4 {[%clk 0:01:57]} 19. Qd3 {[%clk 0:00:31]}  Rd8 {[%clk 0:01:41]} 20. Rfe1 {[%clk 0:00:29]}  Qf8 {[%clk 0:01:40]} 21. Qf3 {[%clk 0:00:16]}  c5 {[%clk 0:01:29]} 22. dxc5 {[%clk 0:00:14]}  Nxc5 {[%clk 0:01:24]} 23. Nxc5 {[%clk 0:00:09]}  Bxc5 {[%clk 0:01:21]} 24. Be3 {[%clk 0:00:09]}  Re7 {[%clk 0:01:14]} 25. Bxc5 {[%clk 0:00:09]}  Rxe1+ {[%clk 0:01:14]} 26. Rxe1 {[%clk 0:00:09]}  Qxc5 {[%clk 0:01:15]} 27. Qe3 {[%clk 0:00:07]}  Na6 {[%clk 0:01:02]} 28. Qxc5 {[%clk 0:00:07]}  Nxc5 {[%clk 0:01:03]} 29. Bc6 {[%clk 0:00:07]}  Rd2 {[%clk 0:00:55]} 30. Re8+ {[%clk 0:00:07]}  Kh7 {[%clk 0:00:56]} 31. Ra8 {[%clk 0:00:08]}  Nd3 {[%clk 0:00:42]} 32. Rxa4 {[%clk 0:00:07]}  Nxf2 {[%clk 0:00:39]} 33. Bg2 {[%clk 0:00:06]}  Nd1 {[%clk 0:00:34]} 34. Rb4 {[%clk 0:00:05]}  Rxb2 {[%clk 0:00:29]} 35. Rxb2 {[%clk 0:00:05]}  Nxb2 {[%clk 0:00:30]} 36. Kf2 {[%clk 0:00:06]}  Kh6 {[%clk 0:00:25]} 37. h4 {[%clk 0:00:05]}  g5 {[%clk 0:00:25]} 38. hxg5+ {[%clk 0:00:05]}  Kxg5 {[%clk 0:00:25]} 39. Bd5 {[%clk 0:00:05]}  f6 {[%clk 0:00:18]} 40. Ke2 {[%clk 0:00:05]}  Kxg4 {[%clk 0:00:16]} 41. Bb3 {[%clk 0:00:03]}  b5 {[%clk 0:00:12]} 42. Kd2 {[%clk 0:00:02]}  f5 {[%clk 0:00:10]} 43. Kc3 {[%clk 0:00:01]}  Na4+ {[%clk 0:00:10]} 44. Kb4 {[%clk 0:00:01]}  f4 {[%clk 0:00:09]} 45. Kxb5 {[%clk 0:00:01]}  Nc3+ {[%clk 0:00:09]} 46. Kb4 {[%clk 0:00:02]}  Ne4 {[%clk 0:00:07]} 47. a4 {[%clk 0:00:02]}  f3 {[%clk 0:00:06]} 48. a5 {[%clk 0:00:02]}  Nd2 {[%clk 0:00:04]} 49. Bd1 {[%clk 0:00:01]}  Kf4 {[%clk 0:00:02]} 50. a6 {[%clk 0:00:02]}  f2 {[%clk 0:00:01]} 51. Be2 {[%clk 0:00:02]}  Ke3 {[%clk 0:00:02]} 52. Bb5 {[%clk 0:00:02]} 1-0


[Site "https://www.chess.com"]